Workbook

Sheet Revalidering
B2: =IF(D4<2020,"Revalideringsydelse - aktivloven § 52","Revalideringsydelse - aktivloven § 71") -> Revalideringsydelse - aktivloven § 71 | H2: Mellemregninger
H3: Fra - til / § | I3: =DATE(D4,I4,MAX(C5,1)) -> 2021-10-01 | J3: =DATE(D4,I4,MIN(D5,I5)) -> 2021-10-31 | K3: =IF(D4<2020,2,3) -> 3 | N3: Input til KY
B4: Måned /år | C4: Oktober | D4: 2021 | H4: måned/år/kolonne | I4: =VLOOKUP(C4,måneder,2,FALSE) -> 10 | J4: =D4 -> 2021 | K4: =VLOOKUP(J4,Tabel1[],2,FALSE) -> 10
B5: Dag - fra-til | H5: Dage i måneden/periode | I5: =VLOOKUP(C4,Tabel211[],J4-2012,FALSE) -> 31 | J5: =J3-I3+1 -> 31 | O5: Resultat fra KMD Aktiv | P5: Resultat fra Ny beregning | Q5: Indberetning til KY
B6: Midlertidig afbrydelse | C6: 0 | H6: Dage med / uden ydelse | I6: =J5-C6 -> 31 | J6: =I5-J5+C6 -> 0
A7: Person | H7: Satsvalg/række/beløb | I7: =(J8&J13&J10&J11)+0 -> 0 | J7: =(IF(J9=0,VLOOKUP(I7,Tabel15[],2,FALSE),IF(J8=3,1,10))-0) -> 99 | K7: =VLOOKUP(J7,Satser,K4,FALSE) -> 0
B8: Alder | C8: Vælg | H8: Alder | I8: =VLOOKUP(C8,Tabel8[],2,FALSE) -> 0 | J8: =I8 -> 0 | N8: Bruttoydelse | P8: =F26 -> 0 | Q8: =P8-O8 -> 0
B9: Tidligere indtægt | C9: 0 | D9: =IF(D4<2020,"jf. §§ 52 a-c","jf. §§ 72-73") -> jf. §§ 72-73 | H9: Grænse tidl. Indtægt | I9: =VLOOKUP(10,Satser,K4,FALSE) -> 19334 | J9: =IF(C9>=I9,1,0) -> 0 | N9: ATP egen andel | P9: =F28 -> 0 | Q9: =P9-O9 -> 0
B10: Bosted person | C10: Vælg | H10: bosted | I10: =VLOOKUP(C10,Tabel12[],2,FALSE) -> 0 | J10: =IF(J8>1,0,IF(I13=2,0,I10)) -> 0 | N10: ATP kommuneandel | P10: =F29 -> 0 | Q10: =P10-O10 -> 0
B11: Gravid / psykisk lidelse | C11: Nej | H11: unge opl. | I11: =VLOOKUP(C11,Tabeller!P2:Q4,2,FALSE) -> 0 | J11: =IF(J8>1,0,IF(I13=2,0,I11)) -> 0 | N11: Periode fra | P11: =I3 -> 2021-10-01 | Q11: =I3 -> 2021-10-01
A12: Børn | N12: Periode til | P12: =J3 -> 2021-10-31 | Q12: =J3 -> 2021-10-31
B13: Børn bosted | C13: Ingen børn | H13: Børn | I13: =VLOOKUP(C13,Tabel14[],2,FALSE) -> 0 | J13: =IF(J8=3,0,I13) -> 0 | N13: Tilbagebetalingspligt
B14: Bidragspligt - antal børn | C14: 0 | H14: bidrag | I14: =IF(OR(J7=5,J7=6),C14,0) -> 0 | J14: =VLOOKUP(16,Tabel7[],K4,FALSE) -> 1443 | K14: =VLOOKUP(11,Tabel7[],K4,FALSE) -> 15547 | N14: Tilbagebetalingsparagraf
A15: Indtægt | H15: Maks bidrag | K15: =MAX(MIN(I14*J14,K14-K7),0) -> 0
B16: Indtægt i måneden | C16: 0 | D16: =IF(D4<2020,"jf. §§ 58-59","jf. §§ 73 f-g") -> jf. §§ 73 f-g
H17: ATP | I17: =IF(I13=0,4,3) -> 4 | J17: =VLOOKUP(I17,Tabel7[],K4,FALSE) -> 11698
B18: Beregning af revalideringsydelse | C18: =I3 -> 2021-10-01 | D18: =J3 -> 2021-10-31 | H18: OP | I18: =VLOOKUP(15,Satser,K4,FALSE) -> 0.006 | M18: Noter
B20: Sats for revalideringsydelse | C20: =VLOOKUP(J7,Tabel7[],K3,FALSE) -> 0 | F20: =K7 -> 0
B21: Antal dag af mulige | C21: =I6&" / "&I5 -> 31 / 31
B23: Revalideringsydelse | C23: =C21&" af " -> 31 / 31 af | D23: =F20 -> 0 | F23: =I6/I5*F20 -> 0
B24: Bidragstillæg | C24: =IF(OR(J7=5,J7=6),C21&" af "," ") ->  | D24: =IF(OR(J7=5,J7=6),K15," ") ->  | F24: =IF(OR(J7=5,J7=6),K15*I6/I5,0) -> 0
B25: Indtægtsfradrag | F25: =-MIN(MAX(C16,0),F23+F24) -> 0
B26: Bruttoydelse | F26: =SUM(F23:F25) -> 0
B28: ATP egen andel jf. § 79 | F28: =IF(J7=1,IF(F26>=J17*I6/I5,-ROUND(VLOOKUP(13,Tabel7[],K4,FALSE)*I6/I5,0),0),0) -> 0
B29: Kommuneandel ATP | F29: =IF(J7=1,(IF(F26>=J17*(I5-C6)/I5,ROUND((VLOOKUP(14,Tabel7[],K4,FALSE)*I6/I5),0),0)),0) -> 0
B30: =IF(D4>2019,"OP-bidrag"," ") -> OP-bidrag | F30: =IF(I18>0,ROUND((F26+F28)*I18,0)," ") -> 0

Sheet Ressourceforløb
B2: Ressourceforløbsydelse - aktivloven § 68 | H2: Mellemregninger
H3: Fra - til / § | I3: =DATE(D4,I4,MAX(1,C5)) -> 2020-08-01 | J3: =DATE(D4,I4,MIN(D5,I5)) -> 2020-08-31 | K3: =IF(D4<2020,2,3) -> 3 | N3: Input til KY
B4: Måned /år | C4: August | D4: 2020 | H4: Måned/år/kolonne | I4: =VLOOKUP(C4,måneder,2,FALSE) -> 8 | J4: =D4 -> 2020 | K4: =VLOOKUP(J4,Tabel1[],2,FALSE) -> 9
B5: Dag - fra-til | H5: Dage i måneden/periode | I5: =VLOOKUP(C4,Tabel211[],J4-2012,FALSE) -> 31 | J5: =J3-I3+1 -> 31 | O5: Resultat fra KMD Aktiv | P5: Resultat fra Ny beregning | Q5: Indberetning til KY
B6: Midlertidig afbrydelse | C6: 0 | H6: Dage med/uden ydelse | I6: =J5-C6 -> 31 | J6: =I5-J5+C6 -> 0
A7: Person | H7: satsvalg KON/række/beløb | I7: =(J8&J11&J13)+0 -> 0 | J7: =VLOOKUP(I7-0,Tabel20[],2,FALSE) -> 99 | K7: =VLOOKUP(J7,Tabel7[],K4,FALSE) -> 0
B8: Alder | C8: Vælg | H8: Alder | I8: =VLOOKUP(C8,Tabel17[],2,FALSE) -> 0 | J8: =I8 -> 0 | N8: Bruttoydelse | P8: =F44 -> 0 | Q8: =P8-O8 -> 0
B9: Ydelsesniveau | C9: Vælg | H9: sats led/sdp | I9: =VLOOKUP(C9,Tabel19[],2,FALSE) -> 0 | J9: =IF(I9=1,J7,VLOOKUP(I9,Tabel20[],2,FALSE)) -> 99 | K9: =IF(OR(I9=3,I9=4),VLOOKUP(J9,Tabel7[],K4,FALSE),0) -> 0 | N9: ATP egen andel | P9: =F46 -> 0 | Q9: =P9-O9 -> 0
B10: Sygedagpenge pr. uge | C10: 0 | D10: =VLOOKUP(22,Satser,K4,FALSE) -> 4405 | E10: (maks. dagpenge) | H10: SDP beregnet | J10: =C10*52/12 -> 0 | K10: =MIN(J10,K9) -> 0 | N10: ATP kommuneandel | P10: =F47 -> 0 | Q10: =P10-O10 -> 0
B11: Bosted person | C11: Vælg | H11: Bosted | I11: =VLOOKUP(C11,Tabel12[],2,FALSE) -> 0 | J11: =IF(J8>1,0,IF(I13=2,0,I11)) -> 0 | N11: Periode fra | P11: =I3 -> 2020-08-01 | Q11: =I3 -> 2020-08-01
A12: Børn | N12: Periode til | P12: =J3 -> 2020-08-31 | Q12: =J3 -> 2020-08-31
B13: Børn | C13: Ingen børn | H13: Børn | I13: =VLOOKUP(C13,Tabel14[],2,FALSE) -> 0 | J13: =IF(J8=3,0,I13) -> 0 | N13: Tilbagebetalingspligt | P13: =F45 -> 
B14: Bidragspligt - antal børn | C14: 0 | H14: Beregnet bidrag | I14: =IF(I7=111,C14,0) -> 0 | J14: =VLOOKUP(21,Tabel7[],K4,FALSE) -> 1415 | K14: =VLOOKUP(20,Tabel7[],K4,FALSE) -> 15355 | N14: Tilbagebetalingsparagraf | P14: =IF(P13=" "," ",IF(D4<2020,"§ 43","§ 69 f")) -> 
A15: Indtægter | H15: nedsat bidrag | K15: =MIN(I14*J14,K14-K7) -> 0
B16: Lønindtægt | C16: 0 | D16: jf. § 68 a, stk. 2 | H16: Indtægtsgrænse | J16: =VLOOKUP(41,Tabel7[],K4,FALSE) -> 14965
B17: Indtægt fra tilbud | C17: 0 | D17: jf. § 68 a, stk. 3 | H17: Timefradrag | J17: =VLOOKUP(42,Tabel7[],K4,FALSE) -> 16.74
B18: - Udførte arbejdstimer i tilbud | C18: 0 | M18: Noter
B19: Feriepenge | C19: 0 | D19: jf. § 68 a, stk. 4
A20: Sanktioner | H20: Procentsats | I20: =ROUNDDOWN((F31+F32+F38)/MAX(F28,1),4) -> 0
B21: Dagsfradrag antal hverdage | C21: 0 | D21: jf. §§ 69 b-c | H21: sats fradrag | I21: =VLOOKUP(I7,Tabel20[],4,FALSE) -> 99 | J21: =VLOOKUP(I21,Tabel7[],K4,FALSE) -> 0 | K21: =IF(I7=111,ROUND((K7+K15)/21.62,0),J21) -> 0
B22: Nedsættelse | C22: Nej | D22: jf. § 69 d | H22: sats punkt | I22: =VLOOKUP(C22,Tabel11[],2,FALSE) -> 0 | J22: =VLOOKUP(J9,Tabel20[[A68]:[punkt]],4,FALSE) -> 99 | K22: =VLOOKUP(J22,Tabel7[],K4,FALSE) -> 0
B23: 1/3-sanktion antal ugedage | C23: 0 | D23: jf. § 69 f | H23: 1/3 sanktion | I23: =IF(C23=0,0,IF(AND(I9<3,OR(I7=110,I7=111)),1,2)) -> 0
B24: Manuel sanktion | C24: 0 | H24: Dagssats | K24: =K7*12/365 -> 0
H25: ATP-grænse | I25: =IF(I13=0,4,3) -> 4 | J25: =VLOOKUP(I25,Tabel7[],K4,FALSE) -> 11554
B26: Beregning af ressourceforløbsydelse | D26: =I3 -> 2020-08-01 | E26: =J3 -> 2020-08-31 | H26: OP | I26: =VLOOKUP(15,Satser,K4,FALSE) -> 0.003
B28: Sats for ressourceforløbsydelse | C28: =VLOOKUP(J9,Tabel7[],2,FALSE) -> 0 | F28: =IF(I9=4,MAX(K7+K15,K10),IF(I9=3,MAX(K7,K9),K7)) -> 0
B29: Antal dag af mulige | C29: =I6&" / "&I5 -> 31 / 31
J30: ≠
B31: Ressourceforløbsydelse | C31: =C29&" af " -> 31 / 31 af | D31: =F28 -> 0 | F31: =I6/I5*F28 -> 0
B32: Bidragstillæg | C32: =IF(AND(I8<3,I7=111),(C29&" af ")," ") ->  | D32: =IF(C14=0," ",K15) ->  | F32: =IF(I9>2,0,IF(I7=111,K15*I6/I5,0)) -> 0
B33: Lønindtægt + feriepenge | E33: =C16+C19 -> 0
B34: Fradragsfri indtægt u. indtægtsgrænse | C34: =MIN(E33,J16) -> 0 | D34: =IF(E33>0,"*(100-30)%"," ") ->  | E34: =-0.7*MIN(C34,E33) -> 0
B35: Fradragsfri indtægt o. indtægtsgrænse | C35: =MAX((E33-C34),0) -> 0 | D35: =IF(E33>0,"* (100-55)%"," ") ->  | E35: =-0.45*C35 -> 0
B36: Indtægt fra tilbud | E36: =C17 -> 0
B37: Timefradrag ved tilbud | C37: =IF(C18=0," ",C18&" timer á ") ->  | D37: =IF(C18=0," ",J17) ->  | E37: =-C18*J17 -> 0
B38: Indtægtsfradrag | E38: =SUM(E33:E37) -> 0 | F38: =-MIN(MAX(E38,0),F31+F32) -> 0
B39: Periodesanktioner | C39: =IF(C21>0,(C21&" dage á "&J21&" * ")," ") ->  | D39: =IF(C21>0,I20," ") ->  | E39: =ROUNDDOWN(C21*J21*I20,2) -> 0
B40: Punktsanktioner | C40: =IF(I22=1,(K22&" * ")&" "," ") ->  | D40: =IF(I22>0,I20," ") ->  | E40: =IF(I22>0,D40*K22,0) -> 0
B41: 1/3-sanktion | C41: =IF(I23=2,(C23&"/"&I5&" * 1/3 af ")," ") ->  | D41: =IF(I23=2,F31+F32+F38," ") ->  | E41: =IF(I23=2,C23/I5*K7/3,0) -> 0
B42: Manuel sanktion | E42: =C24 -> 0
B43: Sanktioner | E43: =SUM(E39:E42) -> 0 | F43: =-MIN(E43,F31+F32+F38) -> 0
B44: Bruttoydelse | F44: =MAX(SUM(F31:F43),0) -> 0
B45: Heraf tilbagebetalingspligtig 1/3-sanktion | C45: =IF(I23=1,(C23&"/"&I5&" * 1/3 af ")," ") ->  | D45: =IF(I23=1,F31+F32+F38," ") ->  | F45: =IF(I23=1,D45*(C23/I5)/3," ") -> 
B46: ATP egen andel | F46: =IF(F44>=J25*I6/I5,-ROUND(VLOOKUP(13,Tabel7[],K4,FALSE)*I6/I5,0),0) -> 0
B47: Kommuneandel ATP | F47: =IF(F44>=J25*I6/I5,ROUND((VLOOKUP(14,Tabel7[],K4,FALSE)*I6/I5),0),0) -> 0
B48: =IF(D4>2019,"OP-bidrag"," ") -> OP-bidrag | F48: =IF(I26>0,ROUND((F44+F46)*I26,0)," ") -> 0

Sheet Jobafklaring
B2: Ressourceforløbsydelse v/ jobafklaring - aktivloven § 69 j | H2: Mellemregninger
H3: Fra - til / § | I3: =DATE(D4,I4,MAX(1,C5)) -> 2015-01-01 | J3: =DATE(D4,I4,MIN(D5,I5)) -> 2015-01-31 | K3: =IF(D5<2020,2,3) -> 2 | N3: Input til KY
B4: Måned /år | C4: Januar | D4: 2015 | H4: Måned/år/kolonne | I4: =VLOOKUP(C4,måneder,2,FALSE) -> 1 | J4: =D4 -> 2015 | K4: =VLOOKUP(J4,Tabel1[],2,FALSE) -> 4
B5: Dag - fra-til | H5: Dage i måneden/periode | I5: =VLOOKUP(C4,Tabel211[],J4-2012,FALSE) -> 31 | J5: =J3-I3+1 -> 31 | O5: Resultat fra KMD Aktiv | P5: Resultat fra Ny beregning | Q5: Indberetning til KY
B6: Midlertidig afbrydelse | C6: 0 | H6: Dage med/uden ydelse | I6: =J5-C6 -> 31 | J6: =I5-J5+C6 -> 0
A7: Person | H7: satsvalg KON | I7: =(J10&J8&J9&J12)+0 -> 0 | J7: =VLOOKUP(I7-0,Tabel20[],3,FALSE) -> 99 | K7: =VLOOKUP(J7,Tabel7[],K4,FALSE) -> 0
B8: Alder | C8: Vælg | H8: Alder | I8: =VLOOKUP(C8,Tabel17[],2,FALSE) -> 0 | J8: =I8 -> 0 | N8: Bruttoydelse | P8: =F45 -> 0 | Q8: =P8-O8 -> 0
B9: Bosted person | C9: Vælg | H9: Bosted | I9: =VLOOKUP(C9,Tabel12[],2,FALSE) -> 0 | J9: =IF(J8>1,0,IF(I12=2,0,I9)) -> 0 | N9: ATP egen andel | P9: =F47 -> 0 | Q9: =P9-O9 -> 0
B10: Selvstændig | C10: Nej | H10: Selvstændig | I10: =VLOOKUP(C10,Tabel19[],2,FALSE) -> 0 | J10: =I10 -> 0 | N10: ATP kommuneandel | P10: =F48 -> 0 | Q10: =P10-O10 -> 0
A11: Børn | N11: Periode fra | P11: =I3 -> 2015-01-01 | Q11: =I3 -> 2015-01-01
B12: Børn | C12: Ingen børn | H12: Børn | I12: =VLOOKUP(C12,Tabel14[],2,FALSE) -> 0 | J12: =IF(J8=3,0,I12) -> 0 | N12: Periode til | P12: =J3 -> 2015-01-31 | Q12: =J3 -> 2015-01-31
B13: Bidragspligt - antal børn | C13: 0 | H13: Bidrag/maks | I13: =IF(OR(I7=111,I7=1111,I7=2111),C13,0) -> 0 | J13: =VLOOKUP(21,Tabel7[],K4,FALSE) -> 1289 | K13: =VLOOKUP(J14,Tabel7[],K4,FALSE) ->  | N13: Tilbagebetalingspligt | P13: =F46 -> 
A14: Indtægter | H14: nedsat bidrag | J14: =J7+1 -> 100 | K14: =IF(I13>0,MIN(I13*J13,K13-K7),0) -> 0 | N14: Tilbagebetalingsparagraf | P14: =IF(P13=" "," ",IF(D4<2020,"§ 43","§ 69 q")) -> 
B15: Løn under sygdom | C15: 0 | D15: jf. § 69 j, stk. 6 | H15: fuldt fradrag
B16: Anden lønindtægt | C16: 0 | D16: jf. § 69 j, stk. 9 | H16: Indtægtsgrænse | J16: =VLOOKUP(41,Tabel7[],K4,FALSE) -> 13648
B17: Indtægt fra tilbud | C17: 0 | D17: jf. § 69 j, stk. 10 | H17: Timefradrag | J17: =VLOOKUP(42,Tabel7[],K4,FALSE) -> 15.73
B18: - Udførte arbejdstimer i tilbud | C18: 0 | M18: Noter
B19: Feriepenge | C19: 0 | D19: jf. § 69 j, stk. 11
A20: Sanktioner | H20: Procentsats | I20: =(F39+F31)/MAX(F28,1) -> 0
B21: Dagsfradrag antal hverdage | C21: 0 | D21: jf. §§ 69 m-n | H21: sats fradrag | I21: =VLOOKUP(I7,Tabel20[],4,FALSE) -> 99 | J21: =VLOOKUP(I21,Tabel7[],K4,FALSE) -> 0 | K21: =IF(I7=111,ROUND((K7+K14)/21.62,0),J21) -> 0
B22: Nedsættelse | C22: Nej | D22: jf. § 69 o | H22: sats punkt | I22: =VLOOKUP(C22,Tabel11[],2,FALSE) -> 0 | J22: =VLOOKUP(I7,Tabel20[],5,FALSE) -> 99 | K22: =VLOOKUP(J22,Tabel7[],K4,FALSE) -> 0
B23: 1/3-sanktion antal ugedage | C23: 0 | D23: jf. § 69 q | H23: 1/3 sanktion | I23: =IF(C23=0,0,IF(AND(I8<3,OR(I7=110,I7=111)),1,2)) -> 0
B24: Manuel sanktion | C24: 0
H25: ATP-grænse | I25: =IF(I12=0,4,3) -> 4 | J25: =VLOOKUP(I25,Tabel7[],K4,FALSE) -> 10849
B26: Beregning af ressourceforløbsydelse | D26: =I3 -> 2015-01-01 | E26: =J3 -> 2015-01-31 | H26: OP | I26: =VLOOKUP(15,Satser,K4,FALSE) -> 0
B28: Sats for ressourceforløbsydelse | C28: =VLOOKUP(J7,Tabel7[],2,FALSE) -> 0 | F28: =VLOOKUP(J7,Tabel7[],K4,FALSE) -> 0
B29: Antal dag af mulige | C29: =I6&" / "&I5 -> 31 / 31
B31: Ressourceforløbsydelse | C31: =C29&" af "&DOLLAR(F28,2) -> 31 / 31 af 0,00 kr. | F31: =I6/I5*F28 -> 0
B32: Bidragstillæg | C32: =IF(AND(I8<3,OR(I7=111,I7=1111,I7=2111)),(C29&" af "&DOLLAR(K14,2))," ") ->  | F32: =IF(OR(I7=111,I7=1111,I7=2111),K14*I6/I5,0) -> 0
B33: Løn under sygdom | E33: =C15 -> 0
B34: Lønindtægt + feriepenge | E34: =C16+C19 -> 0
B35: Fradragsfri indtægt u. indtægtsgrænse | C35: =MIN(E34,J16) -> 0 | D35: =IF(E34>0,"*(100-30)%"," ") ->  | E35: =-0.7*MIN(C35,E34) -> 0
B36: Fradragsfri indtægt o. indtægtsgrænse | C36: =MAX((E34-C35),0) -> 0 | D36: =IF(E34>0,"* (100-55)%"," ") ->  | E36: =-0.45*C36 -> 0
B37: Indtægt fra tilbud | E37: =C17 -> 0
B38: Timefradrag ved tilbud | C38: =IF(C18=0," ",C18&" timer á ") ->  | D38: =IF(C18=0," ",J17) ->  | E38: =-C18*J17 -> 0
B39: Indtægtsfradrag | E39: =SUM(E33:E38) -> 0 | F39: =-MIN(MAX(E39,0),F31+F32) -> 0
B40: Periodesanktioner | C40: =IF(C21>0,(C21&" dage á "&J21&" * ")," ") ->  | D40: =IF(C21>0,I20," ") ->  | E40: =C21*J21*I20 -> 0
B41: Punktsanktioner | C41: =IF(I22=1,(K22&" * ")," ") ->  | D41: =IF(C22="Nej"," ",I20) ->  | E41: =IF(I22>0,D41*K22,0) -> 0
B42: 1/3-sanktion | C42: =IF(I23=2,(C23&"/"&I5&" * 1/3 af ")," ") ->  | D42: =IF(I23=2,F31+F32+F39," ") ->  | E42: =IF(I23=2,D42*(C23/I5)/3,0) -> 0
B43: Manuel sanktion | E43: =C24 -> 0
B44: Sanktioner | E44: =SUM(E40:E43) -> 0 | F44: =-MIN(E44,F31+F32+F39) -> 0
B45: Bruttoydelse | F45: =MAX(SUM(F31:F44),0) -> 0
B46: Tilbagebetalingspligtig 1/3-sanktion | C46: =IF(I23=1,(C23&"/"&I5&" * 1/3 af ")," ") ->  | D46: =IF(I23=1,MAX(F31+F32+F39,0)," ") ->  | F46: =IF(I23=1,D46*(C23/I5)/3," ") -> 
B47: ATP egen andel | F47: =IF(F45>=J25*I6/I5,-ROUND(VLOOKUP(13,Tabel7[],K4,FALSE)*I6/I5,0),0) -> 0
B48: Kommuneandel ATP | F48: =IF(F45>=J25*(I5-C6)/I5,ROUND((VLOOKUP(14,Tabel7[],J4-2012,FALSE)*(I5-C6)/I5),0),0) -> 0
B49: =IF(D4>2019,"OP-bidrag"," ") ->  | F49: =IF(I26>0,ROUND((F45+F47)*I26,0)," ") -> 

Sheet Tabeller (hidden)
A1: Måneder | B1: Kolonne1 | C1: 2015 | D1: 2016 | E1: 2017 | F1: 2018 | G1: 2019 | H1: 2020 | I1: 2021 | K1: Alder | L1: værdi | N1: Antal Børn | P1: Ungekode | Q1: Kolonne1 | S1: Satsvalg | T1: Kolonne1 | V1: Tal
A2: Januar | B2: 1 | C2: 31 | D2: 31 | E2: 31 | F2: 31 | G2: 31 | H2: 31 | I2: 31 | K2: Vælg | L2: 0 | N2: 0 | P2: Nej | Q2: 0 | S2: 3000 | T2: 1 | V2: 0
A3: Februar | B3: 2 | C3: 28 | D3: 29 | E3: 28 | F3: 28 | G3: 28 | H3: 29 | I3: 28 | K3: Under 25 år | L3: 1 | N3: 1 | P3: Gravid | Q3: 1 | S3: 2200 | T3: 2 | V3: 1
A4: Marts | B4: 3 | C4: 31 | D4: 31 | E4: 31 | F4: 31 | G4: 31 | H4: 31 | I4: 31 | K4: 25-29 | L4: 2 | N4: 2 | P4: Psykisk syg | Q4: 2 | S4: 2100 | T4: 3 | V4: 2
A5: April | B5: 4 | C5: 30 | D5: 30 | E5: 30 | F5: 30 | G5: 30 | H5: 30 | I5: 30 | K5: Over 30 år | L5: 3 | N5: 3 | P5: Vælg | Q5: 0 | S5: 2000 | T5: 4 | V5: 3
A6: Maj | B6: 5 | C6: 31 | D6: 31 | E6: 31 | F6: 31 | G6: 31 | H6: 31 | I6: 31 | N6: 4 | S6: 1200 | T6: 2 | V6: 4
A7: Juni | B7: 6 | C7: 30 | D7: 30 | E7: 30 | F7: 30 | G7: 30 | H7: 30 | I7: 30 | K7: JA/NEJ | L7: Kolonne1 | N7: 5 | P7: Børn | Q7: Kolonne1 | S7: 1120 | T7: 5 | V7: 5
A8: Juli | B8: 7 | C8: 31 | D8: 31 | E8: 31 | F8: 31 | G8: 31 | H8: 31 | I8: 31 | K8: Ja | L8: 1 | N8: 6 | P8: Børn hjemme | Q8: 2 | S8: 1121 | T8: 7 | V8: 6
A9: August | B9: 8 | C9: 31 | D9: 31 | E9: 31 | F9: 31 | G9: 31 | H9: 31 | I9: 31 | K9: Nej | L9: 0 | N9: 7 | P9: Børn ude | Q9: 1 | S9: 1122 | T9: 8 | V9: 7
A10: September | B10: 9 | C10: 30 | D10: 30 | E10: 30 | F10: 30 | G10: 30 | H10: 30 | I10: 30 | K10: 0 | L10: 0 | N10: 8 | P10: Ingen børn | Q10: 0 | S10: 1110 | T10: 6 | V10: 8
A11: Oktober | B11: 10 | C11: 31 | D11: 31 | E11: 31 | F11: 31 | G11: 31 | H11: 31 | I11: 31 | N11: 9 | S11: 1111 | T11: 7 | V11: 9
A12: November | B12: 11 | C12: 30 | D12: 30 | E12: 30 | F12: 30 | G12: 30 | H12: 30 | I12: 30 | N12: 10 | P12: Ydelsesniveau | Q12: Kolonne1 | S12: 1112 | T12: 8 | V12: 10
A13: December | B13: 12 | C13: 31 | D13: 31 | E13: 31 | F13: 31 | G13: 31 | H13: 31 | I13: 31 | K13: Bosted | L13: Kolonne1 | P13: Sygedagpenge | Q13: 4 | S13: 1020 | T13: 5 | V13: 11
C14: =SUBTOTAL(109,Tabel211[2015]) -> 365 | D14: =SUBTOTAL(109,Tabel211[2016]) -> 366 | E14: =SUBTOTAL(109,Tabel211[2017]) -> 365 | F14: =SUBTOTAL(109,Tabel211[2018]) -> 365 | G14: =SUBTOTAL(109,Tabel211[2019]) -> 365 | H14: =SUBTOTAL(109,Tabel211[2020]) -> 366 | I14: =SUBTOTAL(109,Tabel211[2019]) -> 365 | K14: Udeboende | L14: 2 | P14: Ledighedsyd.(89%) | Q14: 3 | S14: 1021 | T14: 7 | V14: 12
K15: Hjemmeboende | L15: 1 | P15: Ledighedsyd.(KON) | Q15: 2 | S15: 1022 | T15: 9 | V15: 13
K16: Vælg | L16: 0 | P16: Kontanthjælp | Q16: 1 | S16: 1010 | T16: 6 | V16: 14
P17: Selvstændig 75% | Q17: 1 | S17: 1011 | T17: 7 | V17: 15
K18: Alder | L18: Kolonne1 | P18: Selvstændig 50% | Q18: 2 | S18: 1012 | T18: 6 | V18: 16
K19: Over 25 år | L19: 2 | P19: Nej | Q19: 0 | S19: 0 | T19: 99 | V19: 17
K20: Under 25 år | L20: 1 | P20: Vælg | Q20: 0 | S20: 1000 | T20: 99
K21: Vælg | L21: 0
V24: 18
A25: 1 | B25: 2 | C25: 3 | D25: 4 | E25: 5 | F25: 6 | G25: 7 | H25: 8 | I25: 9 | V25: 19
A26: Kolonne1 | B26: §§ | C26: §§ 2020 | D26: 2015 | E26: 2016 | F26: 2017 | G26: 2018 | H26: 2019 | I26: 2020 | J26: 2021 | L26: A68/69-valg | M26: A68 | N26: A69 | O26: periode | P26: punkt | Q26: Bidragloft | S26: År | T26: Kolonne1 | V26: 20
A27: 1 | B27: § 52 stk. 1 | C27: § 71 stk. 1 | D27: 17928 | E27: 18125 | F27: 18415 | G27: 18645 | H27: 18878 | I27: 19095 | J27: 19334 | L27: 200 | M27: 18 | N27: 29 | O27: 44 | P27: 47 | S27: 2015 | T27: 4 | V27: 21
A28: 2 | B28: § 52 stk. 2 nr. 1 | C28: § 71 stk. 2 nr. 1 | D28: 17928 | E28: 18125 | F28: 18415 | G28: 18645 | H28: 18878 | I28: 19095 | J28: 19334 | L28: 201 | M28: 17 | N28: 28 | O28: 43 | P28: 47 | S28: 2016 | T28: 5 | V28: 22
A29: 3 | B29: § 52 stk. 2 nr. 2 | C29: § 71 stk. 2 nr. 2 | D29: 14416 | E29: 14575 | F29: 14808 | G29: 14993 | H29: 15180 | I29: 15355 | J29: 15547 | L29: 202 | M29: 17 | N29: 28 | O29: 43 | P29: 47 | S29: 2017 | T29: 6 | V29: 23
A30: 4 | B30: § 52 stk. 2 nr. 3 | C30: § 71 stk. 2 nr. 3 | D30: 10849 | E30: 10968 | F30: 11143 | G30: 11282 | H30: 11423 | I30: 11554 | J30: 11698 | L30: 102 | M30: 17 | N30: 28 | O30: 43 | P30: 47 | S30: 2018 | T30: 7 | V30: 24
A31: 5 | B31: § 52 stk. 2 nr. 4 | C31: § 71 stk. 2 nr. 4 | D31: 6992 | E31: 7069 | F31: 7182 | G31: 7272 | H31: 7363 | I31: 7448 | J31: 7541 | L31: 110 | M31: 19 | N31: 30 | O31: 45 | P31: 48 | S31: 2019 | T31: 8 | V31: 25
A32: 6 | B32: § 52 stk. 2 nr. 5 | C32: § 71 stk. 2 nr. 5 | D32: 3374 | E32: 3411 | F32: 3466 | G32: 3509 | H32: 3553 | I32: 3594 | J32: 3639 | L32: 111 | M32: 19 | N32: 30 | O32: 45 | P32: 48 | Q32: 31 | S32: 2020 | T32: 9 | V32: 26
A33: 7 | B33: § 52 stk. 2 nr. 6 | C33: § 71 stk. 2 nr. 6 | D33: 10849 | E33: 10968 | F33: 11143 | G33: 11282 | H33: 11423 | I33: 11554 | J33: 11698 | L33: 120 | M33: 18 | N33: 29 | O33: 44 | P33: 47 | S33: 2021 | T33: 10 | V33: 27
A34: 8 | B34: § 52 stk. 2 nr. 7 | C34: § 71 stk. 2 nr. 7 | D34: 14416 | E34: 14575 | F34: 14808 | G34: 14993 | H34: 15180 | I34: 15355 | J34: 15547 | L34: 121 | M34: 17 | N34: 28 | O34: 43 | P34: 47 | V34: 28
A35: 9 | B35: § 52 stk. 2 nr. 8 | C35: § 71 stk. 2 nr. 8 | D35: 10849 | E35: 10968 | F35: 11143 | G35: 11282 | H35: 11423 | I35: 11554 | J35: 11698 | L35: 122 | M35: 17 | N35: 28 | O35: 43 | P35: 47 | V35: 29
A36: 10 | B36: § 52 stk. 4 | C36: § 71 stk. 4 | D36: 17928 | E36: 18125 | F36: 18415 | G36: 18645 | H36: 18878 | I36: 19095 | J36: 19334 | L36: 4 | M36: 23 | P36: 47 | V36: 30
A37: 11 | B37: § 52 stk. 3 | C37: § 71 stk. 3 | D37: 14416 | E37: 14575 | F37: 14808 | G37: 14993 | H37: 15180 | I37: 15355 | J37: 15547 | L37: 3 | M37: 25 | P37: 47 | V37: 31
A38: 12 | B38: § 58 stk. 1 | D38: 12000 | E38: 12000 | F38: 12000 | G38: 12000 | H38: 12000 | I38: 12000 | J38: 12000 | L38: 2 | M38: 26 | P38: 47
A39: 13 | B39: ATP-bidrag pr. måne | D39: 90 | E39: 95 | F39: 95 | G39: 95 | H39: 95 | I39: 95 | J39: 95 | L39: 1200 | N39: 34 | O39: 50 | P39: 53
A40: 14 | B40: ATP-bidrag kommune | D40: 180 | E40: 189 | F40: 189 | G40: 189 | H40: 189 | I40: 189 | J40: 189 | L40: 1201 | N40: 33 | O40: 49 | P40: 53
A41: 15 | B41: OP-bidrag | H41: 0 | I41: 0.003 | J41: 0.006 | L41: 1202 | N41: 33 | O41: 49 | P41: 53
A42: 16 | B42: Normalbidrag | D42: 1289 | E42: 1307 | F42: 1333 | G42: 1360 | H42: 1387 | I42: 1415 | J42: 1443 | L42: 1102 | N42: 33 | O42: 49 | P42: 53
A43: Ressourceforløb | L43: 1110 | N43: 35 | O43: 51 | P43: 54 | Q43: 36
A44: 17 | B44: § 68 stk. 2 nr. 1 | C44: § 68 stk. 2 nr. 1 | D44: 14416 | E44: 14575 | F44: 14808 | G44: 14993 | H44: 15180 | I44: 15355 | J44: 15547 | L44: 1111 | N44: 35 | O44: 51 | P44: 54
A45: 18 | B45: § 68 stk. 2 nr. 2 | C45: § 68 stk. 2 nr. 2 | D45: 10849 | E45: 10968 | F45: 11143 | G45: 11282 | H45: 11423 | I45: 11554 | J45: 11698 | L45: 1120 | N45: 34 | O45: 50 | P45: 53
A46: 19 | B46: § 68 stk. 2 nr. 3 | C46: § 68 stk. 2 nr. 3 | D46: 3374 | E46: 3411 | F46: 3466 | G46: 3509 | H46: 3553 | I46: 3594 | J46: 3639 | L46: 1121 | N46: 33 | O46: 49 | P46: 53
A47: 20 | B47: § 68 stk. 2 nr. 4 | C47: § 68 stk. 2 nr. 4 | D47: 14416 | E47: 14575 | F47: 14808 | G47: 14993 | H47: 15180 | I47: 15355 | J47: 15547 | L47: 1122 | N47: 33 | O47: 49 | P47: 53
A48: 21 | B48: § 68 stk. 2 nr. 4 | C48: § 68 stk. 2 nr. 4 | D48: 1289 | E48: 1307 | F48: 1333 | G48: 1360 | H48: 1387 | I48: 1415 | J48: 1443 | L48: 2200 | N48: 38 | O48: 56 | P48: 59
A49: 22 | B49: § 68 stk. 4 pr. uge | C49: § 68 stk. 4 pr. uge | D49: 4135 | E49: 4180 | F49: 4245 | G49: 4300 | H49: 4355 | I49: 4405 | J49: 4460 | L49: 2201 | N49: 37 | O49: 55 | P49: 59
A50: 23 | B50: § 68 stk. 4 | C50: § 68 stk. 4 | D50: =D49*52/12 -> 17918.33333 | E50: =E49*52/12 -> 18113.33333 | F50: 18395 | G50: 18633.33333 | H50: 18871.66667 | I50: 19088.33333 | J50: 19326.66667 | L50: 2202 | N50: 37 | O50: 55 | P50: 59
A51: 24 | B51: § 68 stk. 5 pr. uge | C51: § 68 stk. 5 pr. uge | D51: 3680 | F51: 3780 | I51: 3919 | L51: 2102 | N51: 37 | O51: 55 | P51: 59
A52: 25 | B52: § 68 stk. 5 | C52: § 68 stk. 5 | D52: 15947 | E52: 16120 | F52: 16380 | G52: 16583 | H52: 16791 | I52: 16984 | J52: 17197 | L52: 2110 | N52: 39 | O52: 57 | P52: 60
A53: 26 | B53: § 68 stk. 5 | C53: § 68 stk. 5 | D53: 14416 | E53: 14575 | F53: 14808 | G53: 14993 | H53: 15180 | I53: 15355 | J53: 15547 | L53: 2111 | N53: 39 | O53: 57 | P53: 60 | Q53: 40
A54: 27 | B54: § 68 stk. 5 | C54: § 68 stk. 5 | D54: 10849 | E54: 10968 | F54: 11143 | G54: 11282 | H54: 11423 | I54: 11554 | J54: 11698 | L54: 2120 | N54: 38 | O54: 56 | P54: 59
A55: Jobafklaring | L55: 2121 | N55: 37 | O55: 55 | P55: 59
A56: 28 | B56: § 69 j stk. 2 nr. 1 | C56: § 69 j stk. 2 nr. 1 | D56: 14416 | E56: =+Tabeller!N63 -> 0 | F56: 14808 | G56: 14993 | H56: 15180 | I56: 15355 | J56: 15547 | L56: 2122 | N56: 37 | O56: 55 | P56: 59
A57: 29 | B57: § 69 j stk. 2 nr. 2 | C57: § 69 j stk. 2 nr. 2 | D57: 10849 | E57: 10968 | F57: 11143 | G57: 11282 | H57: 11423 | I57: 11554 | J57: 11698 | L57: 0 | M57: 99 | N57: 99 | O57: 99 | P57: 99
A58: 30 | B58: § 69 j stk. 2 nr. 3 | C58: § 69 j stk. 2 nr. 3 | D58: 3374 | E58: 3411 | F58: 3466 | G58: 3509 | H58: 3553 | I58: 3594 | J58: 3639 | L58: 100 | M58: 99 | N58: 99 | O58: 99 | P58: 99
A59: 31 | B59: § 69 j stk. 2 nr. 4 | C59: § 69 j stk. 2 nr. 4 | D59: 14416 | E59: 14575 | F59: 14808 | G59: 14993 | H59: 15180 | I59: 15355 | J59: 15547
A60: 32 | B60: § 69 j stk. 2 nr. 4 | C60: § 69 j stk. 2 nr. 4 | D60: 1289 | E60: 1307 | F60: 1333 | G60: 1360 | H60: 1387 | I60: 1415 | J60: 1443
A61: 33 | B61: § 69 j stk. 4 nr. 1 | C61: § 69 j stk. 4 nr. 1 | D61: 10812 | E61: 10931 | F61: 11106 | G61: 11245 | H61: 11385 | I61: 11516 | J61: 11660
A62: 34 | B62: § 69 j stk. 4 nr. 1 | C62: § 69 j stk. 4 nr. 1 | D62: 8137 | E62: 8226 | F62: 8357 | G62: 8462 | H62: 8567 | I62: 8666 | J62: 8774
A63: 35 | B63: § 69 j stk. 4 nr. 1 | C63: § 69 j stk. 4 nr. 1 | D63: 2530 | E63: 2558 | F63: 2600 | G63: 2632 | H63: 2665 | I63: 2696 | J63: 2729
A64: 36 | B64: § 69 j stk. 4 nr. 1 | C64: § 69 j stk. 4 nr. 1 | D64: 13573 | E64: 13722 | F64: 13942 | G64: 14116 | H64: 14292 | I64: 14457
A65: 37 | B65: § 69 j stk. 4 nr. 2 | C65: § 69 j stk. 4 nr. 2 | D65: 7208 | E65: 7288 | F65: 7404 | G65: 7497 | H65: 7590 | I65: 7678 | J65: 7774
A66: 38 | B66: § 69 j stk. 4 nr. 2 | C66: § 69 j stk. 4 nr. 2 | D66: 5425 | E66: 5484 | F66: 5572 | G66: 5641 | H66: 5712 | I66: 5777 | J66: 5849
A67: 39 | B67: § 69 j stk. 4 nr. 2 | C67: § 69 j stk. 4 nr. 2 | D67: 1687 | E67: 1706 | F67: 1733 | G67: 1755 | H67: 1777 | I67: 1797 | J67: 1820
A68: 40 | B68: § 69 j stk. 4 nr. 2 | C68: § 69 j stk. 4 nr. 2 | D68: 12729 | E68: 12870 | F68: 13075 | G68: 13239 | H68: 13404 | I68: 13558
A69: Indtægtsfradrag
A70: 41 | B70: Indtægtsgrænse | D70: 13648 | E70: 13839 | F70: 14116 | G70: 14398 | H70: 14686 | I70: 14965 | J70: 15264
A71: 42 | B71: timefradrag | D71: 15.73 | E71: 15.9 | F71: 16.15 | G71: 16.35 | H71: 16.55 | I71: 16.74 | J71: 16.95
A72: Sanktioner
A73: 43 | B73: forsørger | D73: 665 | E73: 673 | F73: 683 | G73: 692 | H73: 701 | I73: 709 | J73: 718
A74: 44 | B74: ikke-forsørger | D74: 501 | E74: 506 | F74: 514 | G74: 521 | H74: 527 | I74: 533 | J74: 540
A75: 45 | B75: hjemmeboende | D75: 156 | E75: 157 | F75: 160 | G75: 162 | H75: 164 | I75: 166 | J75: 168
A76: 47 | B76: punkt | D76: 1669 | E76: 1687 | F76: 1714 | G76: 1735 | H76: 1757 | I76: 1777 | J76: 1799
A77: 48 | B77: punkt hjemmeboende | D77: 259 | E77: 262 | F77: 266 | G77: 269 | H77: 272 | I77: 275 | J77: 278
A78: 49 | B78: forsørger 75% | D78: 499 | E78: 505 | F78: 512 | G78: 519 | H78: 526 | I78: 532 | J78: 539
A79: 50 | B79: ikke-forsørger | D79: 376 | E79: 380 | F79: 386 | G79: 391 | H79: 395 | I79: 400 | J79: 405
A80: 51 | B80: hjemmeboende | D80: 117 | E80: 118 | F80: 120 | G80: 122 | H80: 123 | I80: 125 | J80: 126
A81: 53 | B81: punkt | D81: 1251 | E81: 1265 | F81: 1286 | G81: 1301 | H81: 1318 | I81: 1333 | J81: 1349
A82: 54 | B82: punkt hjemmeboende | D82: 194 | E82: 197 | F82: 200 | G82: 202 | H82: 204 | I82: 206 | J82: 209
A83: 55 | B83: forsørger 50% | D83: 333 | E83: 337 | F83: 342 | G83: 346 | H83: 351 | I83: 355 | J83: 359
A84: 56 | B84: ikke-forsørger | D84: 250 | E84: 253 | F84: 257 | G84: 261 | H84: 264 | I84: 267 | J84: 270
A85: 57 | B85: hjemmeboende | D85: 78 | E85: 79 | F85: 80 | G85: 81 | H85: 82 | I85: 83 | J85: 84
A86: 59 | B86: punkt | D86: 834 | E86: 844 | F86: 857 | G86: 868 | H86: 879 | I86: 889 | J86: 900
A87: 60 | B87: punkt hjemmeboende | D87: 129 | E87: 131 | F87: 133 | G87: 135 | H87: 136 | I87: 138 | J87: 139
A88: 99 | D88: 0 | E88: 0 | F88: 0 | G88: 0 | H88: 0 | I88: 0 | J88: 0

Sheet Satser
B1: 2 | C1: §§ 2015-2019 | D1: §§ 2020 - | E1: 2015 | F1: 2016 | G1: 2017 | H1: 2018 | I1: 2019 | J1: 2020 | K1: 2021
A2: Revalidering
B3: Fyldt 30 år | C3: § 52 stk. 1 | D3: § 71 stk. 1 | E3: 17928 | F3: 18125 | G3: 18415 | H3: 18645 | I3: 18878 | J3: 19095 | K3: 19334
B4: Under 30 år, forsørger med egne børn i hjemmet | C4: § 52 stk. 2 nr. 1 | D4: § 71 stk. 2 nr. 1 | E4: 17928 | F4: 18125 | G4: 18415 | H4: 18645 | I4: 18878 | J4: 19095 | K4: 19334
B5: Fyldt 25 år, forsørger med ikke-hjemmeboende børn | C5: § 52 stk. 2 nr. 2 | D5: § 71 stk. 2 nr. 2 | E5: 14416 | F5: 14575 | G5: 14808 | H5: 14993 | I5: 15180 | J5: 15355 | K5: 15547
B6: Fyldt 25 år, ikke forsørgelsespligt | C6: § 52 stk. 2 nr. 3 | D6: § 71 stk. 2 nr. 3 | E6: 10849 | F6: 10968 | G6: 11143 | H6: 11282 | I6: 11423 | J6: 11554 | K6: 11698
B7: Under 25 år, bor ikke hos en eller begge forældre | C7: § 52 stk. 2 nr. 4 | D7: § 71 stk. 2 nr. 4 | E7: 6992 | F7: 7069 | G7: 7182 | H7: 7272 | I7: 7363 | J7: 7448 | K7: 7541
B8: Under 25 år, bor hos en eller begge forældre | C8: § 52 stk. 2 nr. 5 | D8: § 71 stk. 2 nr. 5 | E8: 3374 | F8: 3411 | G8: 3466 | H8: 3509 | I8: 3553 | J8: 3594 | K8: 3639
B9: Under 25 år, gravid og har passeret 12. svangerskabsuge | C9: § 52 stk. 2 nr. 6 | D9: § 71 stk. 2 nr. 6 | E9: 10849 | F9: 10968 | G9: 11143 | H9: 11282 | I9: 11423 | J9: 11554 | K9: 11698
B10: Under 25 år, forsørger med ikke-hjemmeboende børn, psykisk syg | C10: § 52 stk. 2 nr. 7 | D10: § 71 stk. 2 nr. 7 | E10: 14416 | F10: 14575 | G10: 14808 | H10: 14993 | I10: 15180 | J10: 15355 | K10: 15547
B11: Under 25 år, bor ikke hos en eller begge forældre, psykisk syg | C11: § 52 stk. 2 nr. 8 | D11: § 71 stk. 2 nr. 8 | E11: 10849 | F11: 10968 | G11: 11143 | H11: 11282 | I11: 11423 | J11: 11554 | K11: 11698
B12: Hvis indtægt i 6 måneder før afgørelse om revalidering gennemsnitlig overstiger højeste revalidering | C12: § 52 stk. 4 | D12: § 71 stk. 4 | E12: 17928 | F12: 18125 | G12: 18415 | H12: 18645 | I12: 18878 | J12: 19095 | K12: 19334
B13: Under 25 år, max hjælp i alt ved bidragspligt inkl. tillæg | C13: § 52 stk. 3 | D13: § 71 stk. 3 | E13: 14416 | F13: 14575 | G13: 14808 | H13: 14993 | I13: 15180 | J13: 15355 | K13: 15547
C14: Normalbidrag | D14: Normalbidrag | E14: 1289 | F14: 1307 | G14: 1333 | H14: 1360 | I14: 1387 | J14: 1415 | K14: 1443
A15: Ressourceforløb
B16: Forsørgere | C16: § 68 stk. 2 nr. 1 | E16: 14416 | F16: 14575 | G16: 14808 | H16: 14993 | I16: 15180 | J16: 15355 | K16: 15547
B17: Ikke-forsørgere | C17: § 68 stk. 2 nr. 2 | E17: 10849 | F17: 10968 | G17: 11143 | H17: 11282 | I17: 11423 | J17: 11554 | K17: 11698
B18: Under 25 år, hjemmeboende, uden forsørgelsespligt | C18: § 68 stk. 2 nr. 3 | E18: 3374 | F18: 3411 | G18: 3466 | H18: 3509 | I18: 3553 | J18: 3594 | K18: 3639
B19: Personer under 25 år, hjemmeboende, bidragspligt, max hjælp inkl. tillæg | C19: § 68 stk. 2 nr. 4 | E19: 14416 | F19: 14575 | G19: 14808 | H19: 14993 | I19: 15180 | J19: 15355 | K19: 15547
B20: Normalbidrag | C20: § 68 stk. 2 nr. 4 | E20: 1289 | F20: 1307 | G20: 1333 | H20: 1360 | I20: 1387 | J20: 1415 | K20: 1443
B21: Ressourceforløbsydelse (højeste sygedagpengebeløb) | C21: § 68 stk. 4 pr. uge | E21: 4135 | F21: 4180 | G21: 4245 | H21: 4300 | I21: 4355 | J21: 4405 | K21: 4460
C22: § 68 stk. 4 | E22: =E21*52/12 -> 17918.33333 | F22: =F21*52/12 -> 18113.33333 | G22: 18395 | H22: 18633.33333 | I22: 18871.66667 | J22: 19088.33333 | K22: 19326.66667
B23: Ressourceforløbsydelse (ledighedsydelse, kontanthjælp forsørger) | C23: § 68 stk. 5 | E23: 15947 | F23: 16120 | G23: 16380 | H23: 16583 | I23: 16791 | J23: 16984 | K23: 17197
B24: Ressourceforløbsydelse (ledighedsydelse, kontanthjælp forsørger) | C24: § 68 stk. 5 | E24: 14416 | F24: 14575 | G24: 14808 | H24: 14993 | I24: 15180 | J24: 15355 | K24: 15547
B25: Ressourceforløbsydelse (ledighedsydelse, kontanthjælp ikke- forsørger) | C25: § 68 stk. 5 | E25: 10849 | F25: 10968 | G25: 11143 | H25: 11282 | I25: 11423 | J25: 11554 | K25: 11698
A26: Jobafklaring
B27: Forsørgere | C27: § 69 j stk. 2 nr. 1 | E27: 14416 | F27: 14575 | G27: 14808 | H27: 14993 | I27: 15180 | J27: 15355 | K27: 15547
B28: Ikke-forsørgere | C28: § 69 j stk. 2 nr. 2 | E28: 10849 | F28: 10968 | G28: 11143 | H28: 11282 | I28: 11423 | J28: 11554 | K28: 11698
B29: Under 25 år, hjemmeboende, uden forsørgelsespligt | C29: § 69 j stk. 2 nr. 3 | E29: 3374 | F29: 3411 | G29: 3466 | H29: 3509 | I29: 3553 | J29: 3594 | K29: 3639
B30: Personer under 25 år, hjemmeboende, bidragspligt, max hjælp inkl. tillæg | C30: § 69 j stk. 2 nr. 4 | E30: 14416 | F30: 14575 | G30: 14808 | H30: 14993 | I30: 15180 | J30: 15355 | K30: 15547
B31: Normalbidrag | C31: § 69 j stk. 2 nr. 4 | E31: 1289 | F31: 1307 | G31: 1333 | H31: 1360 | I31: 1387 | J31: 1415 | K31: 1443
B32: Forsørgere 75% | C32: § 69 j stk. 4 nr. 1 | E32: 10812 | F32: 10931 | G32: 11106 | H32: 11245 | I32: 11385 | J32: 11516 | K32: 11660
B33: Ikke-forsørgere 75% | C33: § 69 j stk. 4 nr. 1 | E33: 8137 | F33: 8226 | G33: 8357 | H33: 8462 | I33: 8567 | J33: 8666 | K33: 8774
B34: Under 25 år, hjemmeboende, uden forsørgelsespligt 75% | C34: § 69 j stk. 4 nr. 1 | E34: 2530 | F34: 2558 | G34: 2600 | H34: 2632 | I34: 2665 | J34: 2696 | K34: 2729
B35: Personer under 25 år, hjemmeboende, bidragspligt, max hjælp inkl. Tillæg 75% | C35: § 69 j stk. 4 nr. 1 | E35: 13573 | F35: 13722 | G35: 13942 | H35: 14116 | I35: 14292 | J35: 14457 | K35: 14637
B36: Forsørgere 50% | C36: § 69 j stk. 4 nr. 2 | E36: 7208 | F36: 7288 | G36: 7404 | H36: 7497 | I36: 7590 | J36: 7678 | K36: 7774
B37: Ikke-forsørgere 50% | C37: § 69 j stk. 4 nr. 2 | E37: 5425 | F37: 5484 | G37: 5572 | H37: 5641 | I37: 5712 | J37: 5777 | K37: 5849
B38: Under 25 år, hjemmeboende, uden forsørgelsespligt 50% | C38: § 69 j stk. 4 nr. 2 | E38: 1687 | F38: 1706 | G38: 1733 | H38: 1755 | I38: 1777 | J38: 1797 | K38: 1820
B39: Personer under 25 år, hjemmeboende, bidragspligt, max hjælp inkl. Tillæg 50% | C39: § 69 j stk. 4 nr. 2 | E39: 12729 | F39: 12870 | G39: 13075 | H39: 13239 | I39: 13404 | J39: 13558 | K39: 13728
A40: Indtægtsfradrag
B41: Indtægtsgrænse | C41: §§ 68 a, stk. 2, 69 j, stk.9 | E41: 13648 | F41: 13839 | G41: 14116 | H41: 14398 | I41: 14686 | J41: 14965 | K41: 15264
B42: timefradrag | C42: §§ 68 a, stk. 3, 69 j, stk.10 | E42: 15.73 | F42: 15.9 | G42: 16.15 | H42: 16.35 | I42: 16.55 | J42: 16.74 | K42: 16.95
A43: Sanktioner
B44: forsørger | C44: §§ 69 a, stk. 3, 69 l, stk. 3 | D44: §§ 69 a, stk. 4, 69 l, stk. 4 | E44: 665 | F44: 673 | G44: 683 | H44: 692 | I44: 701 | J44: 709 | K44: 718
B45: ikke-forsørger | E45: 501 | F45: 506 | G45: 514 | H45: 521 | I45: 527 | J45: 533 | K45: 540
B46: hjemmeboende | E46: 156 | F46: 157 | G46: 160 | H46: 162 | I46: 164 | J46: 166 | K46: 168
B47: punktsanktion | C47: § 69 d, stk. 2, nr. 1, § 69 o, stk. 2 nr. 1 | D47: § 69 d, stk. 2, nr. 1, § 69 o, stk. 2, nr. 1 | E47: 1669 | F47: 1687 | G47: 1714 | H47: 1735 | I47: 1757 | J47: 1777 | K47: 1799
B48: unge hjemmeboende | C48: § 69 d, stk. 2, nr. 2, § 69 o, stk. 2, nr. 2 | D48: § 69 d, stk. 2, nr. 2, § 69 o, stk. 2, nr. 2 | E48: 259 | F48: 262 | G48: 266 | H48: 269 | I48: 272 | J48: 275 | K48: 278
B49: forsørger 75% | C49: 69 l, stk. 3 | D49: 69 l, stk. 4 | E49: 499 | F49: 505 | G49: 512 | H49: 519 | I49: 526 | J49: 532 | K49: 539
B50: ikke-forsørger | C50: 69 l, stk. 3 | D50: 69 l, stk. 4 | E50: 376 | F50: 380 | G50: 386 | H50: 391 | I50: 395 | J50: 400 | K50: 405
B51: hjemmeboende | C51: 69 l, stk. 3 | D51: 69 l, stk. 4 | E51: 117 | F51: 118 | G51: 120 | H51: 122 | I51: 123 | J51: 125 | K51: 126
B52: punkt | C52: § 69 o, stk. nr. 1 | D52: § 69 o, stk. nr. 1 | E52: 1251 | F52: 1265 | G52: 1286 | H52: 1301 | I52: 1318 | J52: 1333 | K52: 1349
B53: punkt hjemmeboende | C53: § 69 o, stk. nr. 2 | D53: § 69 o, stk. nr. 2 | E53: 194 | F53: 197 | G53: 200 | H53: 202 | I53: 204 | J53: 206 | K53: 209
B54: forsørger 50% | C54: 69 l, stk. 3 | D54: 69 l, stk. 4 | E54: 333 | F54: 337 | G54: 342 | H54: 346 | I54: 351 | J54: 355 | K54: 359
B55: ikke-forsørger | C55: 69 l, stk. 3 | D55: 69 l, stk. 4 | E55: 250 | F55: 253 | G55: 257 | H55: 261 | I55: 264 | J55: 267 | K55: 270
B56: hjemmeboende | C56: 69 l, stk. 3 | D56: 69 l, stk. 4 | E56: 78 | F56: 79 | G56: 80 | H56: 81 | I56: 82 | J56: 83 | K56: 84
B57: punkt | C57: § 69 o, stk. nr. 1 | D57: § 69 o, stk. nr. 1 | E57: 834 | F57: 844 | G57: 857 | H57: 868 | I57: 879 | J57: 889 | K57: 900
B58: punkt hjemmeboende | C58: § 69 o, stk. nr. 2 | D58: § 69 o, stk. nr. 2 | E58: 129 | F58: 131 | G58: 133 | H58: 135 | I58: 136 | J58: 138 | K58: 139
A59: ATP m.m.
B60: ATP-bidrag pr. måned | E60: 90 | F60: 95 | G60: 95 | H60: 95 | I60: 95 | J60: 95 | K60: 95
B61: ATP-bidrag kommune | E61: 180 | F61: 189 | G61: 189 | H61: 189 | I61: 189 | J61: 189 | K61: 189
B62: OP-bidrag | I62: 0 | J62: 0.003 | K62: 0.006
